[Event "25th Bosnjaci Open 2020"]
[Site "Bosnjaci"]
[Date "2020.01.04"]
[Round "2.7"]
[White "Caric, Mato"]
[Black "Zovko, Mario"]
[Result "0-1"]
[ECO "B18"]
[WhiteElo "2055"]
[BlackElo "2330"]
[Annotator "NA"]
[PlyCount "96"]
[EventDate "2020.01.03"]
[EventType "swiss"]
[EventCountry "CRO"]
[SourceTitle "playchess.com"]
[Source "ChessBase"]
[SourceQuality "1"]
[TimeControl "5400+30"]

1. e4 {[%emt 0:00:30]} c6 {[%emt 0:00:30]} 2. d4 {[%emt 0:00:00]} d5 {[%emt 0:00:00]} 3. Nc3 {[%emt 0:00:00]} dxe4 {[%emt 0:00:00]} 4. Nxe4 {[%emt 0:00:30]} Bf5 {[%emt 0:00:00]} 5. Ng3 {[%emt 0:00:30]} Bg6 {[%emt 0:00:00]} 6. Nf3 {[%emt 0:00:30]} Nd7 {[%emt 0:00:30]} 7. Bd3 {[%emt 0:01:30]} Bxd3 {[%emt 0:01:30]} 8. Qxd3 {[%emt 0:00:30]} e6 {[%emt 0:00:30]} 9. O-O {[%emt 0:03:30]} Qc7 {[%emt 0:01:30]} 10. c4 {[%emt 0:03:30]} Ngf6 {[%emt 0:01:30]} 11. Bg5 {[%emt 0:06:30] B18: Classical Caro-Kann: 4...Bf5 sidelines} (11. Ne2 Be7 12. Bf4 Bd6 13. Bxd6 Qxd6 14. Rad1 O-O 15. Nc3 Rfd8 16. Rfe1 h6 17. h3 Qc7 18. Qe2 a6 {½-½ (31) Neto,H (2615)-Dhanish,P (2608) ICCF email 2012}) 11... Be7 {[%emt 0:12:30]} 12. Rfe1 {[%emt 0:10:30]} O-O {[%emt 0:03:30]} 13. Rad1 {[%emt 0:12:30]} Rfe8 {[%emt 0:06:30]} 14. Bxf6 $146 {[%emt 0:08:30]} ({Predecessor:} 14. b3 Rad8 15. Qc2 h6 16. Bc1 Bb4 17. Re2 e5 18. dxe5 Nxe5 19. Nxe5 Rxd1+ 20. Qxd1 Rxe5 {½-½ (54) Garnier,R (2202)-Brizzi,M (2075) Buenos Aires 2018}) 14... Nxf6 {[%emt 0:03:30]} 15. Qb3 {[%emt 0:08:30]} Rad8 {[%emt 0:12:30]} 16. Ne4 {[%emt 0:06:30]} Nxe4 {[%emt 0:01:30]} 17. Rxe4 {[%emt 0:00:30]} Bf6 {[%emt 0:00:00]} 18. Re2 {[%emt 0:10:30]} a6 {[%emt 0:05:00]} 19. Qc2 {[%emt 0:08:07]} g6 {[%emt 0:07:30]} 20. g3 {[%emt 0:00:45]} Rd7 {[%emt 0:02:30]} 21. Ne5 {[%emt 0:05:45]} Bxe5 {[%emt 0:03:30]} 22. dxe5 {[%emt 0:00:23]} Red8 {[%emt 0:01:30]} 23. Rxd7 {[%emt 0:00:37]} Rxd7 {[%emt 0:00:30]} 24. b3 {[%emt 0:02:08]} Qd8 {[%emt 0:01:30]} 25. Kg2 {[%emt 0:00:30]} Rd4 {[%emt 0:00:30]} 26. Qc3 {[%emt 0:00:54]} Rd3 {[%emt 0:02:30]} 27. Qc2 {[%emt 0:00:48]} Qd4 {[%emt 0:02:30]} 28. h3 $17 {[%emt 0:01:24]} c5 {[%emt 0:02:30]} 29. Qc1 {[%emt 0:01:20]} b5 {[%emt 0:00:00]} 30. Qf4 {[%emt 0:03:21]} Qxf4 {[%emt 0:02:00]} 31. gxf4 {[%emt 0:00:06]} bxc4 {[%emt 0:00:30]} 32. bxc4 {[%emt 0:02:01]} Rd4 {[%emt 0:04:30]} 33. Kf3 {[%emt 0:00:07]} Rxc4 {[%emt 0:00:00]} 34. Re3 {[%emt 0:01:21]} Ra4 {[%emt 0:01:00]} 35. a3 {[%emt 0:00:01]} Kg7 {[%emt 0:02:30]} 36. Rc3 {[%emt 0:00:28]} Ra5 {[%emt 0:01:30]} 37. Ke4 {[%emt 0:00:20]} Rb5 {[%emt 0:00:30]} 38. Kd3 {[%emt 0:00:30]} Kf8 {[%emt 0:03:38]} 39. Kc4 {[%emt 0:00:11]} Ke7 {[%emt 0:01:16]} 40. Rd3 {[%emt 0:00:01]} Rb2 {[%emt 0:00:31]} 41. Kxc5 {[%emt 0:00:16]} Rxf2 {[%emt 0:00:16]} 42. Rd4 {[%emt 0:01:38]} Rf3 {[%emt 0:00:44]} 43. a4 {[%emt 0:00:01]} Rxh3 {[%emt 0:00:17]} 44. Kb6 {[%emt 0:00:01]} Rb3+ {[%emt 0:00:12]} 45. Kxa6 {[%emt 0:00:11]} h5 {[%emt 0:00:06]} 46. a5 {[%emt 0:00:21]} h4 {[%emt 0:00:05]} 47. Ka7 {[%emt 0:00:06]} h3 {[%emt 0:00:07]} 48. Rd2 {[%emt 0:00:07]} f6 {[%emt 0:00:12]} 0-1

[Event "25th Bosnjaci Open 2020"]
[Site "Bosnjaci"]
[Date "2020.01.04"]
[Round "2.8"]
[White "Runic, Zoran"]
[Black "Pasalic, Adnan"]
[Result "1-0"]
[ECO "C26"]
[WhiteElo "2326"]
[BlackElo "2024"]
[Annotator "RC"]
[PlyCount "55"]
[EventDate "2020.01.03"]
[EventType "swiss"]
[EventCountry "CRO"]
[SourceTitle "playchess.com"]
[Source "ChessBase"]
[SourceQuality "1"]
[TimeControl "5400+30"]

1. e4 {[%emt 0:00:30]} e5 {[%emt 0:00:30]} 2. Nc3 {[%emt 0:00:00]} Nf6 {[%emt 0:00:00]} 3. g3 {[%emt 0:00:00]} Bc5 {[%emt 0:01:00]} 4. Bg2 {[%emt 0:00:30]} O-O {[%emt 0:00:00]} 5. Nge2 {[%emt 0:01:30]} Nc6 {[%emt 0:01:00]} 6. d3 {[%emt 0:00:30]} d6 {[%emt 0:01:30]} 7. Na4 {[%emt 0:01:30]} Bb6 {[%emt 0:04:30]} 8. Nxb6 {[%emt 0:02:30]} axb6 {[%emt 0:00:00]} 9. O-O {[%emt 0:00:30]} Be6 {[%emt 0:02:00]} 10. f4 {[%emt 0:01:30]} h6 {[%emt 0:05:30]} 11. h3 {[%emt 0:03:30]} Nh7 {[%emt 0:06:30]} 12. f5 {[%emt 0:00:30]} Bd7 {[%emt 0:00:30]} 13. g4 {[%emt 0:03:30]} f6 {[%emt 0:03:30]} 14. h4 {[%emt 0:00:00]} Ne7 {[%emt 0:00:30]} 15. Ng3 {[%emt 0:01:00]} c6 {[%emt 0:02:30]} 16. c3 {[%emt 0:01:30]} Kh8 {[%emt 0:00:30]} 17. d4 {[%emt 0:01:30]} b5 {[%emt 0:01:30]} 18. Be3 {[%emt 0:00:00]} Be8 {[%emt 0:02:30]} 19. dxe5 {[%emt 0:02:00]} dxe5 {[%emt 0:00:30]} 20. Qxd8 {[%emt 0:00:30]} Rxd8 {[%emt 0:00:00]} 21. Bc5 {[%emt 0:01:30]} Rf7 {[%emt 0:00:00]} 22. Rfd1 {[%emt 0:00:30]} Rd7 {[%emt 0:01:30]} 23. a4 {[%emt 0:02:30]} b6 {[%emt 0:01:30]} 24. Rxd7 {[%emt 0:00:30]} Bxd7 {[%emt 0:00:30]} 25. Bxb6 {[%emt 0:00:00]} bxa4 {[%emt 0:00:30]} 26. Rxa4 {[%emt 0:00:00]} Nc8 {[%emt 0:00:30]} 27. Bc5 {[%emt 0:00:30]} Nf8 {[%emt 0:02:30]} 28. Bf1 {[%emt 0:00:30]} 1-0

[Event "25th Bosnjaci Open 2020"]
[Site "Bosnjaci"]
[Date "2020.01.04"]
[Round "2.9"]
[White "Egerc, Josip"]
[Black "Rosic, Slavko S"]
[Result "0-1"]
[ECO "B01"]
[WhiteElo "2038"]
[BlackElo "2295"]
[Annotator "ChessBase"]
[PlyCount "60"]
[EventDate "2020.01.03"]
[EventType "swiss"]
[EventCountry "CRO"]
[SourceTitle "playchess.com"]
[Source "ChessBase"]
[SourceQuality "1"]
[TimeControl "5400+30"]

1. e4 {[%emt 0:00:30]} d5 {[%emt 0:01:30]} 2. exd5 {[%emt 0:00:00]} Qxd5 {[%emt 0:00:30]} 3. Nc3 {[%emt 0:00:00]} Qa5 {[%emt 0:00:00]} 4. d4 {[%emt 0:00:30]} e5 {[%emt 0:00:00]} 5. Bc4 {[%emt 0:00:30]} Bb4 {[%emt 0:03:30]} 6. Nge2 {[%emt 0:02:30]} Nc6 {[%emt 0:02:30]} 7. O-O {[%emt 0:03:30]} Bg4 {[%emt 0:01:30]} 8. dxe5 {[%emt 0:01:30]} Nxe5 {[%emt 0:01:30]} 9. Bb5+ {[%emt 0:00:30]} c6 {[%emt 0:07:30]} 10. Qd4 {[%emt 0:00:30]} f6 {[%emt 0:05:30]} 11. a3 {[%emt 0:07:30]} Be7 {[%emt 0:09:30]} 12. f4 {[%emt 0:08:30]} Bxe2 {[%emt 0:01:30]} 13. b4 {[%emt 0:00:30]} Qd8 {[%emt 0:11:30]} 14. Qxd8+ {[%emt 0:01:30]} Bxd8 {[%emt 0:00:30]} 15. Bxe2 {[%emt 0:00:30]} Bb6+ {[%emt 0:00:30]} 16. Kh1 {[%emt 0:00:30]} Bd4 {[%emt 0:01:30]} 17. Bb2 {[%emt 0:04:30]} Ng6 {[%emt 0:01:30]} 18. Bg4 {[%emt 0:00:30]} Nh6 {[%emt 0:00:30]} 19. Be6 {[%emt 0:00:30]} Nf8 {[%emt 0:00:30]} 20. Bh3 {[%emt 0:00:30]} f5 {[%emt 0:01:30]} 21. Rad1 {[%emt 0:16:30]} Ne6 {[%emt 0:01:30]} 22. g4 {[%emt 0:07:30]} fxg4 {[%emt 0:02:30]} 23. f5 {[%emt 0:00:30]} gxh3 {[%emt 0:00:30]} 24. fxe6 {[%emt 0:00:30]} Bf6 {[%emt 0:00:30]} 25. Rd7 {[%emt 0:01:30]} O-O {[%emt 0:00:30]} 26. Re1 {[%emt 0:04:30]} Rae8 {[%emt 0:02:30]} 27. Kg1 {[%emt 0:01:30]} Nf5 {[%emt 0:00:30]} 28. Nd1 {[%emt 0:00:30]} Nh4 {[%emt 0:02:30]} 29. Re4 {[%emt 0:07:30]} Nf3+ {[%emt 0:00:30]} 30. Kf2 {[%emt 0:00:30]} Ng5 {[%emt 0:01:30]} 0-1

[Event "25th Bosnjaci Open 2020"]
[Site "Bosnjaci"]
[Date "2020.01.04"]
[Round "2.10"]
[White "Stocko, Josip"]
[Black "Borzan, Andrej"]
[Result "0-1"]
[ECO "B07"]
[WhiteElo "2262"]
[BlackElo "1970"]
[Annotator "ChessBase"]
[PlyCount "100"]
[EventDate "2020.01.03"]
[EventType "swiss"]
[EventCountry "CRO"]
[SourceTitle "playchess.com"]
[Source "ChessBase"]
[SourceQuality "1"]
[TimeControl "5400+30"]

1. e4 {[%emt 0:00:30]} d6 {[%emt 0:00:30]} 2. d4 {[%emt 0:00:00]} Nf6 {[%emt 0:00:00]} 3. Nc3 {[%emt 0:00:00]} g6 {[%emt 0:00:00]} 4. g3 {[%emt 0:00:30]} Bg7 {[%emt 0:00:30]} 5. Bg2 {[%emt 0:00:30]} O-O {[%emt 0:00:30]} 6. Nge2 {[%emt 0:00:00]} e5 {[%emt 0:00:30]} 7. O-O {[%emt 0:00:00]} Nbd7 {[%emt 0:02:30]} 8. h3 {[%emt 0:01:30]} c6 {[%emt 0:00:30]} 9. a4 {[%emt 0:02:30]} Qc7 {[%emt 0:02:30]} 10. Be3 {[%emt 0:01:30]} Re8 {[%emt 0:02:30]} 11. Qd2 {[%emt 0:04:30]} Nb6 {[%emt 0:04:30]} 12. b3 {[%emt 0:01:30]} a5 {[%emt 0:04:30]} 13. Rad1 {[%emt 0:07:30]} d5 {[%emt 0:08:30]} 14. exd5 {[%emt 0:00:30]} Nfxd5 {[%emt 0:00:30]} 15. Nxd5 {[%emt 0:02:30]} Nxd5 {[%emt 0:00:30]} 16. Bh6 {[%emt 0:00:30]} e4 {[%emt 0:02:30]} 17. Bxg7 {[%emt 0:03:30]} Kxg7 {[%emt 0:00:30]} 18. Qc1 {[%emt 0:06:30]} f5 {[%emt 0:03:30]} 19. Rfe1 {[%emt 0:05:30]} Be6 {[%emt 0:02:30]} 20. Qb2 {[%emt 0:07:30]} Kg8 {[%emt 0:03:30]} 21. Nc3 {[%emt 0:00:30]} Rac8 {[%emt 0:03:30]} 22. Nb1 {[%emt 0:01:30]} Bf7 {[%emt 0:01:30]} 23. Na3 {[%emt 0:03:30]} e3 {[%emt 0:04:30]} 24. c4 {[%emt 0:08:30]} Nf6 {[%emt 0:09:30]} 25. fxe3 {[%emt 0:08:30]} Qxg3 {[%emt 0:00:00]} 26. Qf2 {[%emt 0:00:30]} Ne4 {[%emt 0:01:00]} 27. Qxg3 {[%emt 0:02:30]} Nxg3 {[%emt 0:00:00]} 28. d5 {[%emt 0:01:30]} cxd5 {[%emt 0:01:00]} 29. Bxd5 {[%emt 0:00:30]} Bxd5 {[%emt 0:00:00]} 30. Rxd5 {[%emt 0:00:30]} b6 {[%emt 0:01:00]} 31. Nb5 {[%emt 0:02:30]} Rcd8 {[%emt 0:00:30]} 32. Nd6 {[%emt 0:01:30]} Rf8 {[%emt 0:03:30]} 33. Red1 {[%emt 0:00:30]} Ne2+ 34. Kg2 {[%emt 0:00:30]} Nc3 {[%emt 0:01:00]} 35. R1d3 {[%emt 0:00:30]} Nxd5 {[%emt 0:01:30]} 36. Rxd5 {[%emt 0:00:30]} Kg7 {[%emt 0:00:30]} 37. Kg3 {[%emt 0:01:30]} Kf6 {[%emt 0:04:30]} 38. e4 {[%emt 0:00:00]} fxe4 {[%emt 0:02:30]} 39. Nxe4+ {[%emt 0:00:00]} Kg7 {[%emt 0:00:30]} 40. Rb5 {[%emt 0:01:30]} Rd3+ {[%emt 0:00:30]} 41. Kg2 {[%emt 0:00:00]} Re8 {[%emt 0:00:30]} 42. Nf2 {[%emt 0:03:00]} Re2 {[%emt 0:02:30]} 43. Kf1 {[%emt 0:02:30]} Rdd2 {[%emt 0:00:30]} 44. Ng4 {[%emt 0:01:30]} h5 {[%emt 0:01:30]} 45. Ne5 {[%emt 0:00:30]} Ra2 {[%emt 0:02:30]} 46. Nd3 {[%emt 0:03:22]} Rh2 {[%emt 0:01:30]} 47. Kg1 {[%emt 0:00:43]} Rxh3 {[%emt 0:00:30]} 48. Rd5 {[%emt 0:00:55]} Rd2 {[%emt 0:02:30]} 49. Nf4 {[%emt 0:03:09]} Rxd5 {[%emt 0:00:30]} 50. cxd5 {[%emt 0:00:07]} Rxb3 {[%emt 0:00:00]} 0-1

[Event "25th Bosnjaci Open 2020"]
[Site "Bosnjaci"]
[Date "2020.01.04"]
[Round "2.11"]
[White "Mestrovic, Toni"]
[Black "Matanovic, Luka"]
[Result "0-1"]
[ECO "C98"]
[WhiteElo "2026"]
[BlackElo "2256"]
[Annotator "ChessBase"]
[PlyCount "72"]
[EventDate "2020.01.03"]
[EventType "swiss"]
[EventCountry "CRO"]
[SourceTitle "playchess.com"]
[Source "ChessBase"]
[SourceQuality "1"]
[TimeControl "5400+30"]

1. e4 {[%emt 0:00:30]} e5 {[%emt 0:00:30]} 2. Nf3 {[%emt 0:00:30]} Nc6 {[%emt 0:00:30]} 3. Bb5 {[%emt 0:00:30]} a6 {[%emt 0:00:30]} 4. Ba4 {[%emt 0:00:30]} Nf6 {[%emt 0:00:00]} 5. O-O {[%emt 0:00:30]} b5 {[%emt 0:00:00]} 6. Bb3 {[%emt 0:00:00]} Be7 {[%emt 0:00:30]} 7. Re1 {[%emt 0:00:00]} d6 {[%emt 0:00:30]} 8. c3 {[%emt 0:00:30]} O-O {[%emt 0:00:00]} 9. h3 {[%emt 0:00:30]} Na5 {[%emt 0:01:00]} 10. Bc2 {[%emt 0:00:00]} c5 {[%emt 0:00:30]} 11. d4 {[%emt 0:00:00]} Qc7 {[%emt 0:00:30]} 12. Nbd2 {[%emt 0:01:30]} Nc6 {[%emt 0:00:30]} 13. dxc5 {[%emt 0:01:30]} dxc5 {[%emt 0:00:30]} 14. Nf1 {[%emt 0:00:30]} Rd8 {[%emt 0:03:30]} 15. Qe2 {[%emt 0:00:30]} h6 {[%emt 0:01:30]} 16. Ne3 {[%emt 0:01:30]} Be6 {[%emt 0:03:30]} 17. a4 {[%emt 0:02:30]} Rab8 {[%emt 0:06:30]} 18. axb5 {[%emt 0:05:30]} axb5 {[%emt 0:00:30]} 19. b3 {[%emt 0:01:30]} Na5 {[%emt 0:05:30]} 20. c4 {[%emt 0:02:30]} bxc4 {[%emt 0:15:30]} 21. bxc4 {[%emt 0:00:30]} Nb3 {[%emt 0:00:30]} 22. Bxb3 {[%emt 0:00:30]} Rxb3 {[%emt 0:00:30]} 23. Nd5 {[%emt 0:00:30]} Bxd5 {[%emt 0:06:30]} 24. exd5 {[%emt 0:00:30]} Bd6 {[%emt 0:02:30]} 25. Ra6 {[%emt 0:04:30]} Re8 {[%emt 0:19:30]} 26. Nh4 {[%emt 0:11:30]} e4 {[%emt 0:03:30]} 27. Rc6 {[%emt 0:01:30]} Qd7 {[%emt 0:01:30]} 28. Bb2 {[%emt 0:11:30]} Be5 {[%emt 0:04:30]} 29. Bxe5 {[%emt 0:01:30]} Rxe5 {[%emt 0:00:30]} 30. Rxc5 {[%emt 0:06:30]} Rh5 {[%emt 0:03:51]} 31. Qc2 {[%emt 0:00:30]} Rxh3 {[%emt 0:00:30]} 32. gxh3 {[%emt 0:00:30]} Qxh3 {[%emt 0:00:30]} 33. Re3 {[%emt 0:01:30]} Qxh4 {[%emt 0:01:10]} 34. Rc8+ {[%emt 0:00:00]} Kh7 {[%emt 0:00:02]} 35. Kf1 {[%emt 0:01:00]} Qg4 {[%emt 0:00:45]} 36. Ke1 {[%emt 0:03:30]} Qxc8 {[%emt 0:00:10]} 0-1

[Event "25th Bosnjaci Open 2020"]
[Site "Bosnjaci"]
[Date "2020.01.04"]
[Round "2.12"]
[White "Andrijevic, Milan"]
[Black "Todev, Simeon"]
[Result "1/2-1/2"]
[ECO "B92"]
[WhiteElo "2223"]
[BlackElo "1957"]
[Annotator "ChessBase"]
[PlyCount "87"]
[EventDate "2020.01.03"]
[EventType "swiss"]
[EventCountry "CRO"]
[SourceTitle "playchess.com"]
[Source "ChessBase"]
[SourceQuality "1"]
[TimeControl "5400+30"]

1. e4 {[%emt 0:00:30]} c5 {[%emt 0:00:30]} 2. Nf3 {[%emt 0:00:30]} d6 {[%emt 0:00:00]} 3. d4 {[%emt 0:00:30]} cxd4 {[%emt 0:00:00]} 4. Nxd4 {[%emt 0:00:30]} Nf6 {[%emt 0:00:00]} 5. Nc3 {[%emt 0:00:00]} a6 {[%emt 0:00:00]} 6. Be2 {[%emt 0:00:00]} e5 {[%emt 0:00:30]} 7. Nb3 {[%emt 0:00:30]} Be7 {[%emt 0:00:00]} 8. Be3 {[%emt 0:00:00]} Be6 {[%emt 0:00:00]} 9. Nd5 {[%emt 0:00:00]} Nbd7 {[%emt 0:00:30]} 10. Qd3 {[%emt 0:00:30]} O-O {[%emt 0:00:30]} 11. O-O {[%emt 0:00:30]} b5 {[%emt 0:00:30]} 12. a4 {[%emt 0:00:30]} Bxd5 {[%emt 0:01:30]} 13. exd5 {[%emt 0:00:30]} bxa4 {[%emt 0:00:00]} 14. Rxa4 {[%emt 0:00:30]} Nb6 {[%emt 0:00:00]} 15. Rxa6 {[%emt 0:16:30]} Rxa6 {[%emt 0:00:30]} 16. Qxa6 {[%emt 0:00:30]} Nbxd5 {[%emt 0:00:30]} 17. Bd2 {[%emt 0:00:30]} Nc7 {[%emt 0:07:30]} 18. Qc6 {[%emt 0:06:30]} Ne6 {[%emt 0:00:30]} 19. f4 {[%emt 0:10:30]} Qc8 {[%emt 0:01:30]} 20. Qxc8 {[%emt 0:02:30]} Rxc8 {[%emt 0:00:00]} 21. c3 {[%emt 0:06:30]} exf4 {[%emt 0:03:00]} 22. Bxf4 {[%emt 0:00:30]} Rb8 {[%emt 0:01:30]} 23. Bd1 {[%emt 0:02:30]} Nxf4 {[%emt 0:02:30]} 24. Rxf4 {[%emt 0:00:30]} Nd5 {[%emt 0:00:30]} 25. Re4 {[%emt 0:04:30]} f5 {[%emt 0:02:30]} 26. Re1 {[%emt 0:01:30]} Bg5 {[%emt 0:01:30]} 27. Kf2 {[%emt 0:01:30]} Kf8 {[%emt 0:10:30]} 28. Kf3 {[%emt 0:04:30]} Bf6 {[%emt 0:03:30]} 29. g3 {[%emt 0:11:30]} Be5 {[%emt 0:03:30]} 30. Bc2 {[%emt 0:01:30]} g6 {[%emt 0:01:30]} 31. Ra1 {[%emt 0:03:30]} Bg7 {[%emt 0:05:30]} 32. Rd1 {[%emt 0:01:30]} Nb6 {[%emt 0:01:30]} 33. Nd4 {[%emt 0:01:30]} Nc4 {[%emt 0:02:30]} 34. Ne6+ {[%emt 0:04:49]} Kf7 {[%emt 0:00:30]} 35. Nxg7 {[%emt 0:00:08]} Rxb2 {[%emt 0:01:30]} 36. Nxf5 {[%emt 0:01:05]} Rxc2 {[%emt 0:00:30]} 37. Nxd6+ {[%emt 0:00:16]} Nxd6 {[%emt 0:00:30]} 38. Rxd6 {[%emt 0:00:02]} Rxc3+ {[%emt 0:00:00]} 39. Kf4 {[%emt 0:00:12]} Rc4+ {[%emt 0:00:00]} 40. Kf3 {[%emt 0:00:06]} h5 {[%emt 0:00:30]} 41. h4 {[%emt 0:00:22]} Rg4 {[%emt 0:00:30]} 42. Ra6 {[%emt 0:00:30]} Kg7 {[%emt 0:00:30]} 43. Rb6 {[%emt 0:00:30]} Kf7 {[%emt 0:00:30]} 44. Ra6 {[%emt 0:00:00]} 1/2-1/2

[Event "25th Bosnjaci Open 2020"]
[Site "Bosnjaci"]
[Date "2020.01.04"]
[Round "2.14"]
[White "Sipic, Hrvoje"]
[Black "Matanovic, Nikola"]
[Result "0-1"]
[ECO "D02"]
[WhiteElo "2210"]
[BlackElo "1933"]
[Annotator "ChessBase"]
[PlyCount "82"]
[EventDate "2020.01.03"]
[EventType "swiss"]
[EventCountry "CRO"]
[SourceTitle "playchess.com"]
[Source "ChessBase"]
[SourceQuality "1"]
[TimeControl "5400+30"]

1. d4 {[%emt 0:00:30]} d5 {[%emt 0:00:30]} 2. Nf3 {[%emt 0:00:00]} Nf6 {[%emt 0:00:30]} 3. Bf4 {[%emt 0:00:00]} e6 {[%emt 0:00:30]} 4. e3 {[%emt 0:00:30]} Bd6 {[%emt 0:00:30]} 5. Ne5 {[%emt 0:00:30]} Nbd7 {[%emt 0:01:30]} 6. Nd2 {[%emt 0:00:30]} O-O {[%emt 0:01:30]} 7. Bd3 {[%emt 0:01:30]} Bxe5 {[%emt 0:00:30]} 8. dxe5 {[%emt 0:00:30]} Ne8 {[%emt 0:00:30]} 9. Nf3 {[%emt 0:03:30]} f6 {[%emt 0:03:30]} 10. h4 {[%emt 0:03:30]} c5 {[%emt 0:00:30]} 11. Bxh7+ {[%emt 0:07:30]} Kxh7 {[%emt 0:00:30]} 12. Ng5+ {[%emt 0:00:30]} fxg5 {[%emt 0:01:30]} 13. hxg5+ {[%emt 0:00:00]} Kg8 {[%emt 0:03:30]} 14. Qh5 {[%emt 0:00:00]} Rxf4 {[%emt 0:00:30]} 15. exf4 {[%emt 0:02:30]} Kf8 {[%emt 0:01:30]} 16. g6 {[%emt 0:03:30]} Nb6 {[%emt 0:02:30]} 17. Qh8+ {[%emt 0:13:30]} Ke7 {[%emt 0:00:30]} 18. Qg8 {[%emt 0:00:30]} Kd7 {[%emt 0:00:30]} 19. f5 {[%emt 0:04:30]} exf5 {[%emt 0:03:30]} 20. Qf7+ {[%emt 0:08:30]} Qe7 {[%emt 0:01:30]} 21. Qxf5+ {[%emt 0:01:30]} Kc6 {[%emt 0:00:00]} 22. Qf4 {[%emt 0:02:30]} Be6 {[%emt 0:00:00]} 23. O-O-O {[%emt 0:00:30]} Rd8 {[%emt 0:00:30]} 24. Rh8 {[%emt 0:04:30]} d4 {[%emt 0:01:30]} 25. Kb1 {[%emt 0:02:30]} Nd5 {[%emt 0:00:30]} 26. Qe4 {[%emt 0:00:30]} Qd7 {[%emt 0:01:30]} 27. Rf8 {[%emt 0:12:30]} Kb6 {[%emt 0:01:30]} 28. f4 {[%emt 0:02:30]} Qb5 {[%emt 0:00:30]} 29. Kc1 {[%emt 0:06:34]} Nb4 {[%emt 0:02:30]} 30. a3 {[%emt 0:02:33]} Na2+ {[%emt 0:01:30]} 31. Kd2 {[%emt 0:00:30]} Qxb2 {[%emt 0:00:30]} 32. f5 {[%emt 0:01:00]} Qc3+ {[%emt 0:00:30]} 33. Ke2 {[%emt 0:00:42]} Bc4+ {[%emt 0:00:30]} 34. Kf2 {[%emt 0:00:27]} Qe3+ {[%emt 0:00:30]} 35. Qxe3 {[%emt 0:00:41]} dxe3+ {[%emt 0:00:00]} 36. Kxe3 {[%emt 0:02:53]} Rxd1 {[%emt 0:00:00]} 37. Rxe8 {[%emt 0:00:06]} Nc3 {[%emt 0:00:30]} 38. Kf4 {[%emt 0:01:08]} Rd4+ {[%emt 0:00:30]} 39. Kg5 {[%emt 0:00:43]} Ne4+ {[%emt 0:01:30]} 40. Kh5 {[%emt 0:00:30]} Ng3+ {[%emt 0:02:30]} 41. Kg5 {[%emt 0:00:30]} Be2 {[%emt 0:00:00]} 0-1

[Event "25th Bosnjaci Open 2020"]
[Site "Bosnjaci"]
[Date "2020.01.04"]
[Round "3.1"]
[White "Zaja, Ivan"]
[Black "Hodak, Stevo"]
[Result "1-0"]
[ECO "D06"]
[WhiteElo "2447"]
[BlackElo "2186"]
[Annotator "NA"]
[PlyCount "51"]
[EventDate "2020.01.03"]
[EventType "swiss"]
[EventCountry "CRO"]
[SourceTitle "playchess.com"]
[Source "ChessBase"]
[SourceQuality "1"]
[TimeControl "5400+30"]

1. d4 {[%emt 0:00:30]} d5 {[%emt 0:00:30]} 2. c4 {[%emt 0:00:00]} Nf6 {[%emt 0:04:30]} 3. cxd5 {[%emt 0:00:00]} Nxd5 {[%emt 0:00:30]} 4. e4 {[%emt 0:00:30]} Nf6 {[%emt 0:00:30]} 5. Nc3 {[%emt 0:00:30]} e6 {[%emt 0:00:30]} 6. Nf3 {[%emt 0:07:30]} Be7 {[%emt 0:02:30]} 7. Bd3 {[%emt 0:04:30]} c5 {[%emt 0:09:30]} 8. d5 {[%emt 0:00:30]} exd5 {[%emt 0:02:30]} 9. e5 {[%emt 0:02:30]} Ng8 {[%emt 0:15:30]} 10. Nxd5 {[%emt 0:00:30]} Nc6 {[%emt 0:00:30]} 11. Be4 {[%emt 0:02:30]} Bg4 {[%emt 0:07:30]} 12. Bf4 {[%emt 0:01:30]} f5 {[%emt 0:05:30]} 13. exf6 {[%emt 0:00:30]} Nxf6 {[%emt 0:00:00]} 14. Nc7+ {[%emt 0:00:30]} Kf8 {[%emt 0:04:00]} 15. Bxc6 {[%emt 0:01:30]} bxc6 {[%emt 0:03:30]} 16. Nxa8 {[%emt 0:00:30]} Qxa8 {[%emt 0:00:00]} 17. Bd6 {[%emt 0:03:30]} Qd8 {[%emt 0:03:00]} 18. Bxe7+ {[%emt 0:00:30]} Qxe7+ {[%emt 0:00:30]} 19. Qe2 {[%emt 0:00:00]} Qxe2+ {[%emt 0:02:30]} 20. Kxe2 {[%emt 0:00:00]} Kf7 {[%emt 0:00:30]} 21. Rhc1 {[%emt 0:03:30]} Re8+ {[%emt 0:00:30]} 22. Kf1 {[%emt 0:00:00]} Ne4 {[%emt 0:02:30]} 23. Re1 {[%emt 0:01:00]} Kf6 {[%emt 0:03:30]} 24. Re3 {[%emt 0:01:30]} Bd7 {[%emt 0:05:30]} 25. Rae1 {[%emt 0:07:30]} Nd6 {[%emt 0:01:30]} 26. Ne5 {[%emt 0:01:30]} 1-0

[Event "25th Bosnjaci Open 2020"]
[Site "Bosnjaci"]
[Date "2020.01.04"]
[Round "3.3"]
[White "Babic, Zvonko"]
[Black "Rogulj, Branko"]
[Result "0-1"]
[ECO "E61"]
[WhiteElo "2165"]
[BlackElo "2386"]
[Annotator "NA"]
[PlyCount "66"]
[EventDate "2020.01.03"]
[EventType "swiss"]
[EventCountry "CRO"]
[SourceTitle "playchess.com"]
[Source "ChessBase"]
[SourceQuality "1"]
[TimeControl "5400+30"]

1. Nf3 {[%emt 0:02:30]} Nf6 {[%emt 0:00:30]} 2. e3 {[%emt 0:00:30]} g6 {[%emt 0:02:30]} 3. d4 {[%emt 0:03:30]} Bg7 {[%emt 0:00:00]} 4. Be2 {[%emt 0:00:00]} O-O {[%emt 0:02:00]} 5. O-O {[%emt 0:01:00]} d6 {[%emt 0:02:30]} 6. c4 {[%emt 0:00:30]} c5 {[%emt 0:01:30]} 7. Nc3 {[%emt 0:03:30]} cxd4 {[%emt 0:00:30]} 8. exd4 {[%emt 0:03:30]} d5 {[%emt 0:00:30]} 9. h3 {[%emt 0:04:30]} Nc6 {[%emt 0:07:30]} 10. Be3 {[%emt 0:11:30]} dxc4 {[%emt 0:04:30]} 11. Bxc4 {[%emt 0:04:30]} b6 {[%emt 0:00:30]} 12. a3 {[%emt 0:01:30]} Bb7 {[%emt 0:00:30]} 13. b4 {[%emt 0:01:30]} Rc8 {[%emt 0:05:30]} 14. Qb3 {[%emt 0:03:30]} Qc7 {[%emt 0:15:30]} 15. Rac1 {[%emt 0:08:30]} Nxd4 {[%emt 0:06:30]} 16. Bxf7+ {[%emt 0:08:30]} Rxf7 {[%emt 0:00:30]} 17. Nxd4 {[%emt 0:00:30]} Qc4 {[%emt 0:04:30]} 18. Qxc4 {[%emt 0:04:30]} Rxc4 {[%emt 0:01:30]} 19. Ncb5 {[%emt 0:01:30]} Rxc1 {[%emt 0:01:30]} 20. Rxc1 {[%emt 0:00:30]} a6 {[%emt 0:00:30]} 21. Rc7 {[%emt 0:02:30]} e5 {[%emt 0:00:30]} 22. Rxf7 {[%emt 0:00:30]} Kxf7 {[%emt 0:00:30]} 23. Nd6+ {[%emt 0:00:30]} Ke7 {[%emt 0:00:30]} 24. Nxb7 {[%emt 0:00:30]} exd4 {[%emt 0:00:30]} 25. Bxd4 {[%emt 0:00:30]} Kd7 {[%emt 0:00:00]} 26. Be5 {[%emt 0:02:30]} Ne8 {[%emt 0:00:00]} 27. Bg3 {[%emt 0:00:30]} Bf8 {[%emt 0:00:30]} 28. Bh4 {[%emt 0:07:30]} Be7 {[%emt 0:01:30]} 29. Bxe7 {[%emt 0:01:30]} Kxe7 {[%emt 0:00:30]} 30. a4 {[%emt 0:00:30]} Kd7 {[%emt 0:00:00]} 31. a5 {[%emt 0:00:30]} Kc7 {[%emt 0:00:00]} 32. b5 {[%emt 0:00:00]} axb5 {[%emt 0:00:30]} 33. a6 {[%emt 0:00:00]} b4 {[%emt 0:00:30]} 0-1